[Event "Hungarian Championship Women 2022"]
[Site "Budapest"]
[Date "2022.12.13"]
[Round "9.2"]
[White "Terbe, Julianna"]
[Black "Szente Varga, Fruzsina"]
[Result "1-0"]
[ECO "A90"]
[WhiteElo "2282"]
[BlackElo "2075"]
[Annotator "TA"]
[PlyCount "89"]
[EventDate "2022.12.03"]
[EventType "tourn"]
[EventCountry "HUN"]
[SourceTitle "playchess.com"]
[Source "ChessBase"]
[SourceQuality "1"]
[TimeControl "40/5400+30:1800+30"]

{[%evp 18,89,25,16,37,22,50,49,52,50,73,41,95,48,83,82,133,78,73,84,105,106,102,101,182,167,163,116,162,72,75,60,76,69,68,55,62,46,52,55,77,58,199,78,135,130,247,253,238,245,244,250,254,239,208,250,622,631,662,381,420,357,484,362,580,571,384,383,832,835,835,818,771,720]} 1. d4 {[%emt 0:00:34]} e6 {[%emt 0:02:10]} 2. c4 {[%emt 0:02:07]} f5 {[%emt 0:00:18]} 3. g3 {[%emt 0:00:52]} Nf6 {[%emt 0:00:53]} 4. Bg2 {[%emt 0:00:06]} d5 {[%emt 0:00:15]} 5. Nf3 {[%emt 0:00:56]} c6 {[%emt 0:02:02]} 6. O-O {[%emt 0:01:16]} Bd6 {[%emt 0:00:08]} 7. b3 {[%emt 0:01:06]} Qe7 {[%emt 0:00:28]} 8. a4 {[%emt 0:02:32]} a5 {[%emt 0:00:19]} 9. Ba3 {[%emt 0:00:35]} Bxa3 {[%emt 0:00:06]} 10. Nxa3 {[%emt 0:00:05]} Na6 {[%emt 0:00:30] A90: Dutch Defence: Miscellaneous and Modern Stonewall (with ...Bd6).} 11. Nc2 {[%emt 0:01:24] [#]} Ne4 $146 {[%emt 0:01:46]} ({Predecessor:} 11... O-O 12. Ne5 Bd7 13. Qd2 b6 14. f3 Rac8 15. Rae1 c5 16. e4 fxe4 17. fxe4 cxd4 18. exd5 exd5 {1-0 (27) Harshavardhan,G (2397)-Milanovic,V (2293) Chess.com INT 2020}) 12. Ne5 {[%emt 0:02:48]} O-O {[%emt 0:02:41] White is slightly better.} 13. f3 {[%emt 0:05:56]} Nd6 {[%emt 0:09:11]} 14. Qd2 {[%emt 0:01:45]} Nc7 {[%emt 0:03:32]} ({Black should play} 14... Qc7 $14) 15. e4 {[%emt 0:14:37]} (15. Ne1 $16) 15... f4 {[%emt 0:10:23]} 16. c5 {[%emt 0:04:25]} Nde8 {[%emt 0:00:40]} (16... Nf7 $142) 17. gxf4 {[%emt 0:08:06] White is much more active.} (17. Ne1 $142) 17... Qh4 {[%emt 0:02:37]} 18. Nd3 {[%emt 0:00:10]} Nf6 {[%emt 0:00:51]} 19. Qf2 $1 {[%emt 0:03:14]} Qh6 {[%emt 0:03:42]} 20. Ne3 {[%emt 0:06:40]} Nh5 {[%emt 0:11:03]} (20... g6 $16 {is a better defense.} 21. Ng4 Qg7) 21. Ng4 $18 {[%emt 0:00:11]} Qg6 {[%emt 0:00:19]} 22. Kh1 {[%emt 0:10:59]} (22. Qh4 $18) 22... Qf7 {[%emt 0:16:04]} (22... Nxf4 $16 23. Nxf4 Rxf4) 23. Nde5 {[%emt 0:06:23]} (23. Rg1 $18) 23... Qe7 $16 {[%emt 0:00:31]} 24. Rg1 {[%emt 0:03:45][%cal Bf1g1,Bg1g3,Bg3h3][%mdl 32]} Nxf4 {[%emt 0:01:06]} 25. Qe3 {[%emt 0:01:17]} Bd7 {[%emt 0:03:23]} 26. Bf1 {[%emt 0:00:41]} (26. Nf2 {feels hotter.} Be8 27. Bh3 Qh4 28. Rg4) 26... Be8 {[%emt 0:02:11]} 27. Bd3 {[%emt 0:01:59]} Bh5 {[%emt 0:05:08]} 28. Rg3 {[%emt 0:01:16]} (28. Rae1 {simplifies} Qh4 29. Rg3 Nxd3 30. Qxd3 Bxg4 31. Nxg4 g6 32. Qd2) 28... Kh8 {[%emt 0:01:06]} 29. Rag1 {[%emt 0:01:12]} Qh4 {[%emt 0:08:48]} (29... g6 $14) 30. Nf2 {[%emt 0:05:53]} (30. Nd7 $1 $18) 30... g6 {[%emt 0:02:11] [#]} (30... Ne8 $142) 31. Bf1 $1 {[%emt 0:03:14]} Ne8 {[%emt 0:04:16]} (31... Rae8 $16 32. Nh3 Nxh3 33. Bxh3 (33. Rxh3 Qf4 $16) 33... Qf4) 32. Nh3 $18 {[%emt 0:03:17]} Nxh3 {[%emt 0:01:32]} 33. Rxh3 {[%emt 0:01:00]} ({Less strong is} 33. Bxh3 Qf4 34. Qd3 Rd8 $14) 33... Qf4 {[%emt 0:00:47]} 34. Qxf4 {[%emt 0:01:50]} Rxf4 {[%emt 0:00:08] [#]} 35. Rxg6 $40 {[%emt 0:00:42][%mdl 640] White attacks with force.} Bxf3+ {[%emt 0:04:56] [#]} (35... Ng7 36. Bd3) 36. Bg2 $1 {[%emt 0:01:07]} ({But not} 36. Nxf3 $6 Rxf3 37. Rxf3 hxg6 $16) 36... Bxe4 $2 {[%emt 0:01:35]} (36... Bxg2+ 37. Kxg2 Rf6) 37. Bxe4 {[%emt 0:00:11]} (37. Rxe6 $2 Rf1#) 37... dxe4 {[%emt 0:00:04]} 38. Rg1 {[%emt 0:03:11] aiming for Ng6+.} Rf6 {[%emt 0:00:41]} 39. Ng6+ {[%emt 0:00:42]} Rxg6 {[%emt 0:00:49]} 40. Rxg6 {[%emt 0:00:00] KRR-KRN} Ng7 $2 {[%emt 0:00:00]} (40... e5 41. dxe5 Ng7) 41. Rgh6 {[%emt 0:02:39]} Kg8 {[%emt 0:01:48]} 42. Rxh7 {[%emt 0:00:14] Strongly threatening Rh8+.} Rf8 $2 {[%emt 0:03:41]} (42... Re8 43. R7h4 Nf5 44. Rxe4 Kg7) 43. Rh8+ {[%emt 0:00:31] White is clearly winning.} Kf7 {[%emt 0:00:03]} 44. Rxf8+ {[%emt 0:00:04]} Kxf8 {[%emt 0:00:02]} 45. Re3 {[%emt 0:00:26] Weighted Error Value: White=0.26 (precise) /Black=0.47} 1-0

[Event "Hungarian Championship Women 2022"]
[Site "Budapest"]
[Date "2022.12.13"]
[Round "9.3"]
[White "Ivan-Gal, Hanna Krisztina"]
[Black "Mihok-Juhasz, Barbara"]
[Result "1-0"]
[ECO "B31"]
[WhiteElo "2164"]
[BlackElo "2206"]
[Annotator "TA"]
[PlyCount "80"]
[EventDate "2022.12.03"]
[EventType "tourn"]
[EventCountry "HUN"]
[SourceTitle "playchess.com"]
[Source "ChessBase"]
[SourceQuality "1"]
[TimeControl "40/5400+30:1800+30"]

{[%evp 9,80,7,10,19,26,18,26,20,31,25,37,29,24,29,25,0,0,-9,0,-1,-8,-20,16,10,36,38,82,0,21,0,0,0,45,39,86,91,91,92,92,82,91,82,110,111,113,105,106,112,115,112,107,107,106,111,114,112,110,103,114,84,127,83,91,97,105,83,127,80,115,120,145,147,29975]} 1. e4 {[%emt 0:00:33]} c5 {[%emt 0:01:34]} 2. Nf3 {[%emt 0:00:08]} Nc6 {[%emt 0:00:10]} 3. Bb5 {[%emt 0:00:14]} g6 {[%emt 0:00:23]} 4. Bxc6 {[%emt 0:00:16]} bxc6 {[%emt 0:00:06]} 5. d4 {[%emt 0:00:23]} cxd4 {[%emt 0:00:06]} 6. Qxd4 {[%emt 0:00:12] B31: Sicilian: 2...Nc6 3 Bb5 g6.} f6 {[%emt 0:00:04] The main line 6...f6 scores better than 6...Nf6.} 7. O-O {[%emt 0:00:31]} d6 {[%emt 0:00:05]} 8. c4 {[%emt 0:02:04] White has an edge.} c5 {[%emt 0:00:20]} 9. Qd3 {[%emt 0:00:50][%cal Ob2b4]} Bg7 {[%emt 0:00:20]} 10. Nc3 {[%emt 0:00:41]} Rb8 {[%emt 0:00:36]} 11. b3 {[%emt 0:01:37]} Nh6 {[%emt 0:00:14]} 12. Bb2 {[%emt 0:01:23]} O-O {[%emt 0:05:56]} 13. Rfe1 {[%emt 0:05:07]} Nf7 {[%emt 0:05:37] [#]} 14. Nd5 $146 {[%emt 0:05:15]} ({Predecessor:} 14. h3 Bb7 15. Rad1 Bc6 16. Qc2 Qc7 17. Nd5 Qb7 18. Bc3 Ra8 19. h4 a5 20. h5 {½-½ (66) Sethuraman,S (2638)-Ismagambetov,A (2528) Moscow 2019}) 14... e6 {[%emt 0:02:34]} 15. Nc3 {[%emt 0:05:14]} f5 {[%emt 0:20:53]} 16. Rad1 {[%emt 0:08:29][%cal Oe4e5]} Qa5 {[%emt 0:01:55] Against e5} 17. Re2 {[%emt 0:10:13]} a6 {[%emt 0:02:24]} 18. Na4 {[%emt 0:05:27]} ({Better is} 18. h4 $16) 18... Bxb2 {[%emt 0:12:32]} 19. Rxb2 {[%emt 0:00:56]} (19. exf5 $5 gxf5 20. Rxb2 $11) 19... fxe4 {[%emt 0:03:46]} 20. Qxe4 {[%emt 0:00:09]} Bb7 {[%emt 0:00:03]} (20... Bd7 $5 {[%cal Rd7a4]} 21. Rdb1 Rfe8 $11) 21. Qe3 {[%emt 0:05:47]} (21. Qxe6 $2 {is the wrong capture.} Rbe8 22. Qd7 Bxf3 23. gxf3 Re1+ 24. Rxe1 Qxe1+ 25. Kg2 Ng5 26. Qxd6 Nxf3 $19) 21... Bxf3 {[%emt 0:18:07]} (21... Rbe8 $14) 22. Qxf3 $16 {[%emt 0:00:09]} d5 {[%emt 0:03:42]} 23. cxd5 {[%emt 0:03:23]} exd5 {[%emt 0:00:05]} 24. Qxd5 {[%emt 0:11:04]} Rbd8 {[%emt 0:08:21]} 25. Qf3 {[%emt 0:00:10] White is much more active.} (25. Qxc5 $2 Rxd1#) 25... Rfe8 {[%emt 0:02:52][%cal Oa5e1] [#] ( -> ...Qe1+!)} 26. Rbb1 {[%emt 0:00:13]} c4 {[%emt 0:01:20][%cal Od8d3]} 27. h3 {[%emt 0:02:51]} Rxd1+ {[%emt 0:03:39]} 28. Rxd1 {[%emt 0:04:45]} Re1+ {[%emt 0:03:16]} 29. Rxe1 {[%emt 0:00:26]} Qxe1+ {[%emt 0:00:01][%mdl 4096] Endgame KQN-KQN} 30. Kh2 {[%emt 0:00:07]} Qe5+ {[%emt 0:00:34]} 31. Qg3 {[%emt 0:03:30]} Qd4 {[%emt 0:02:50]} 32. bxc4 {[%emt 0:05:00]} Qxc4 {[%emt 0:00:05]} 33. Nc3 {[%emt 0:00:15]} Kg7 {[%emt 0:01:09]} 34. a3 {[%emt 0:01:16]} h5 {[%emt 0:00:32]} 35. Nd1 {[%emt 0:00:39]} Qe6 {[%emt 0:01:09]} 36. Ne3 {[%emt 0:03:37]} Nd6 {[%emt 0:00:25]} 37. Qf4 {[%emt 0:02:38]} Ne4 {[%emt 0:00:31]} 38. Nc2 {[%emt 0:02:06]} (38. g3 $142) 38... Nf6 {[%emt 0:00:37]} 39. Qc7+ {[%emt 0:01:25]} Kh6 {[%emt 0:00:22]} 40. Nd4 {[%emt 0:00:00]} Nd5 $2 {[%emt 0:00:00][%mdl 8192] Weighted Error Value: White=0.10 (very precise) /Black=0.14 (very precise)} (40... Qd5 $16) 1-0

[Event "Hungarian Championship Women 2022"]
[Site "Budapest"]
[Date "2022.12.13"]
[Round "9.4"]
[White "Dudas, Eszter"]
[Black "Karacsonyi, Kata"]
[Result "0-1"]
[ECO "B31"]
[WhiteElo "2135"]
[BlackElo "2109"]
[Annotator "TA"]
[PlyCount "84"]
[EventDate "2022.12.03"]
[EventType "tourn"]
[EventCountry "HUN"]
[SourceTitle "playchess.com"]
[Source "ChessBase"]
[SourceQuality "1"]
[TimeControl "40/5400+30:1800+30"]

{[%evp 11,84,37,44,37,39,32,29,33,34,13,23,12,53,54,106,62,56,63,75,66,101,96,118,66,141,131,140,121,193,166,162,106,114,60,60,-113,-117,-134,48,-148,-12,-100,-102,-157,-142,-382,-369,-427,-410,-413,-412,-404,-412,-388,-323,-526,-438,-620,-620,-620,-620,-709,-708,-708,-702,-1033,-992,-1206,-1195,-1178,-1163,-1317,-1302,-1219,-1199]} 1. e4 {[%emt 0:00:41]} c5 {[%emt 0:00:40]} 2. Nf3 {[%emt 0:00:11]} Nc6 {[%emt 0:00:11]} 3. Bb5 {[%emt 0:01:51]} g6 {[%emt 0:00:17]} 4. O-O {[%emt 0:00:27]} Bg7 {[%emt 0:00:14]} 5. Re1 {[%emt 0:02:24]} a6 {[%emt 0:03:36]} 6. Bxc6 {[%emt 0:02:44]} dxc6 {[%emt 0:10:55]} 7. d3 {[%emt 0:05:40] B31: Sicilian: 2...Nc6 3 Bb5 g6.} Nf6 {[%emt 0:02:46]} 8. h3 {[%emt 0:04:37]} O-O {[%emt 0:01:51]} 9. Be3 {[%emt 0:02:32] White has an edge.} Nd7 {[%emt 0:07:26]} 10. Nc3 {[%emt 0:08:09]} b6 {[%emt 0:09:04]} 11. Qd2 {[%emt 0:08:19] [#]} Ne5 $146 {[%emt 0:03:30]} (11... e5 12. Nh2 Re8 13. Rf1 Nf8 14. Bh6 Qe7 15. Bxg7 Kxg7 16. f4 exf4 17. Qxf4 Be6) ({Predecessor:} 11... e5 12. Nh2 Re8 13. Rf1 Nf8 14. Bh6 Qe7 15. Bxg7 Kxg7 16. f4 exf4 17. Qxf4 Be6 {0-1 (65) Nguyen,L (2427)-Bui,T (1331) Hanoi 2021}) 12. Nh2 {[%emt 0:03:34]} f5 {[%emt 0:09:23]} (12... f6 $14) 13. f4 {[%emt 0:09:29]} Nf7 {[%emt 0:00:47]} 14. e5 {[%emt 0:00:37]} g5 {[%emt 0:04:56]} 15. Nf3 {[%emt 0:04:52]} (15. fxg5 Nxe5 16. Bf2 Qd6) (15. fxg5 Nxe5 16. Bf2 Nf7 $11) 15... gxf4 {[%emt 0:09:03]} 16. Bxf4 {[%emt 0:00:16]} Be6 {[%emt 0:01:35]} 17. a3 {[%emt 0:11:01]} (17. Rad1 $16) 17... Qc7 {[%emt 0:04:23]} (17... Nh8 $14) 18. Rad1 {[%emt 0:01:28]} Rad8 {[%emt 0:01:08]} 19. Qe3 {[%emt 0:01:13]} Qc8 {[%emt 0:01:29]} (19... Nh8 $16) 20. Rd2 {[%emt 0:06:42]} Nh8 {[%emt 0:01:26]} 21. Ne2 {[%emt 0:04:13]} (21. Nh4 $1 $18) 21... Ng6 $16 {[%emt 0:02:09]} 22. h4 {[%emt 0:01:49]} (22. Bg5) (22. Bg5 $16) 22... Bd5 $14 {[%emt 0:05:27]} 23. Ng3 $2 {[%emt 0:14:00]} (23. Ng5 $14 {keeps the upper hand.}) 23... Bxf3 $1 $17 {[%emt 0:01:28]} 24. Qxf3 {[%emt 0:00:55] [#]} Qe6 $2 {[%emt 0:01:03]} (24... Nxh4 25. Qe3 $15) ({Black should try} 24... Nxf4 $1 $17 25. Qxf4 Rd4) 25. Rde2 $2 {[%emt 0:00:51] [#]} (25. Nh5 $1 $14 {stays ahead.}) 25... Nxh4 {[%emt 0:03:41]} (25... Nxf4 $1 $17 26. Qxf4 Rd4) 26. Qh5 {[%emt 0:00:39]} (26. Qf2 $11) 26... Ng6 $36 {[%emt 0:00:37][%mdl 2048] Black is on the roll.} 27. Rf1 {[%emt 0:01:38]} (27. Bh6 $142) 27... Rd4 {[%emt 0:01:11]} (27... Bxe5 $2 28. Bxe5 Nxe5 29. Rxf5 Rxf5 30. Nxf5 $18) 28. Bg5 {[%emt 0:01:11]} (28. Ref2 $17) 28... h6 {[%emt 0:02:00]} ({Inferior is} 28... Bxe5 29. Rf3 $19) ({Not} 28... Nxe5 29. Qh3 Rg4 30. Bf4 $14) 29. Bxh6 {[%emt 0:00:32]} Rh4 {[%emt 0:00:15]} (29... Nxe5 $2 30. Bxg7 Kxg7 31. Rxf5 $18) 30. Bxg7 {[%emt 0:00:18] aiming for Qg5.} Rxh5 {[%emt 0:00:39] Dancing on a razor blade.} 31. Nxh5 {[%emt 0:00:09]} Rf7 {[%emt 0:00:35]} 32. Bh6 {[%emt 0:00:28]} Qd5 {[%emt 0:07:13]} (32... Nxe5 $2 {is the wrong capture.} 33. Bf4 Qg6 34. Bxe5 Qxh5 35. Ref2 $19) 33. Bf4 $2 {[%emt 0:00:21]} (33. c3 {was worth a try.}) 33... Qd4+ {[%emt 0:01:04] Black is clearly winning.} 34. Rff2 {[%emt 0:01:32]} (34. Ref2 $142) 34... Rh7 $19 {[%emt 0:00:23]} 35. Be3 {[%emt 0:00:04]} Qh4 {[%emt 0:00:33]} 36. Rxf5 {[%emt 0:00:14]} Rxh5 {[%emt 0:00:14]} 37. Rxh5 {[%emt 0:00:12]} Qxh5 {[%emt 0:00:02]} 38. Rf2 {[%emt 0:00:57]} Qxe5 {[%emt 0:00:29]} 39. Bc1 {[%emt 0:00:11]} Qe1+ {[%emt 0:01:59]} 40. Rf1 {[%emt 0:00:00]} Qe2 {[%emt 0:00:00]} 41. Rf2 {[%emt 0:00:08]} Qd1+ {[%emt 0:00:27]} 42. Rf1 {[%emt 0:00:11]} Qxc2 {[%emt 0:00:06] Quite a comeback for Black.   Weighted Error Value: White=0.84/Black=0.25 (precise)} 0-1